bitfinex/quotes_ETHUSD_20220120
["timestamp","ask_amount","ask_price","bid_price","bid_amount"]
[1642714160489,0.00397897,3175.2,3174.8,1.12449462]
[1642714160888,0.00341055,3175.1,3174.8,1.91185462]
[1642714161135,0.00341055,3175.1,3174.8,1.12449462]
[1642714161337,0.00284212,3175.0,3174.8,1.12449462]
[1642714161739,0.0022737,3174.9,3174.8,1.12449462]
[1642714162943,0.0022737,3174.9,3174.8,4.02449462]
[1642714163343,0.0022737,3174.9,3174.8,0.92667103]
[1642714165721,0.0022737,3174.9,3174.6,0.78747]
[1642714165922,0.0022737,3174.9,3174.4,1.1882]
[1642714166123,0.00170527,3174.8,3174.4,1.1882]
[1642714166524,0.00113685,3174.7,3174.4,1.1882]
[1642714166725,0.00113685,3174.7,3174.4,1.97572]
[1642714166922,0.00113685,3174.7,3174.6,0.95139075]
[1642714168123,0.00113685,3174.7,3174.6,1.73886075]
[1642714168324,0.00113685,3174.7,3174.6,0.78747]
[1642714170344,0.00113685,3174.7,3174.6,1.75144502]
[1642714170947,0.00113685,3174.7,3174.6,0.78747]
[1642714171345,0.00113685,3174.7,3174.4,1.97573]
[1642714171544,0.00113685,3174.7,3174.4,2.76319]
[1642714172144,0.00113685,3174.7,3174.5,1.05188868]
[1642714172407,0.00113685,3174.7,3174.6,0.79128615]
[1642714173813,0.00113685,3174.7,3174.6,4.23886651]
[1642714174010,0.00113685,3174.7,3174.6,8.237071]
[1642714174413,0.00113685,3174.7,3174.6,12.50558391]
[1642714174611,0.03554903,3175.3,3174.7,6.10217157]
[1642714174811,0.03554903,3175.3,3174.8,7.83935464]
[1642714175010,0.00284212,3175.2,3174.8,8.12150003]
[1642714175210,0.00284212,3175.2,3174.8,9.51489555]
[1642714175411,0.0022737,3175.1,3174.9,0.97153326]
[1642714175617,0.0022737,3175.1,3175.0,8.78554109]
[1642714175810,0.03554903,3175.3,3175.0,9.57275109]
[1642714176009,0.03554903,3175.3,3175.0,10.35996079]
[1642714176238,0.00284212,3175.2,3175.0,11.14719079]
[1642714176440,0.00284212,3175.2,3175.1,7.72989441]
[1642714176639,0.03554903,3175.3,3175.1,3.42989441]
[1642714176837,0.03554903,3175.3,3175.2,5.48726]
[1642714177238,0.03554903,3175.3,3175.2,8.1590716]
[1642714177239,0.03895957,3175.3,3175.2,8.1590716]
[1642714177439,0.03895957,3175.3,3175.2,11.38609042]
[1642714177938,0.03895957,3175.3,3175.2,8.1590716]
[1642714178144,0.03895957,3175.3,3175.2,11.43673629]
[1642714178740,0.03895957,3175.3,3175.2,12.69732933]
[1642714179140,0.03895957,3175.3,3175.2,9.41966464]
[1642714179541,0.03895957,3175.3,3175.2,12.66937803]
[1642714179876,0.03895957,3175.3,3175.2,12.67733591]
[1642714181082,0.03895957,3175.3,3175.2,3.4590716]
[1642714182183,0.03895957,3175.3,3175.2,4.81696336]
[1642714182583,0.03895957,3175.3,3175.2,4.76696336]
[1642714182786,0.03895957,3175.3,3175.2,3.4090716]
[1642714183639,0.03895957,3175.3,3175.2,2.6718116]
[1642714184038,0.03895957,3175.3,3175.1,2.6718116]
[1642714184441,0.00284212,3175.2,3174.9,0.97153326]
[1642714184839,0.0022737,3175.1,3174.9,0.97153326]
[1642714185239,0.00170527,3175.0,3174.9,0.97153326]
[1642714186242,0.00170527,3175.0,3174.9,4.03165306]
[1642714186643,0.00170527,3175.0,3174.9,2.54617326]
[1642714186841,0.00170527,3175.0,3174.9,0.97153326]
[1642714187046,0.00170527,3175.0,3174.7,0.00217157]
[1642714187242,0.00170527,3175.0,3174.9,0.00380265]
[1642714187486,0.03554903,3175.3,3174.9,0.00380265]
[1642714187893,0.00284212,3175.2,3174.9,0.00380265]
[1642714188089,0.00284212,3175.2,3175.0,0.95496563]
[1642714188292,0.0022737,3175.1,3174.9,0.00380265]
[1642714188597,3.85170527,3175.0,3174.9,0.00380265]
[1642714190592,4.15170527,3175.0,3174.2,2.75734]
[1642714190792,1.5751394,3174.9,3174.2,2.75734]
[1642714190991,1.5751394,3174.9,3174.3,0.00227369]
[1642714190992,1.57627625,3174.9,3174.3,0.00227369]
[1642714191234,0.00113685,3174.9,3174.3,0.00227369]
[1642714191429,0.00113685,3174.9,3174.4,0.78753]
[1642714191631,0.00113685,3174.9,3174.5,1.12919223]
[1642714191829,0.00113685,3174.9,3174.5,1.13032908]
[1642714194134,0.00113685,3174.9,3174.5,0.00113685]
[1642714194740,0.00113685,3174.9,3174.1,0.00341054]
[1642714195184,0.00113685,3174.9,3174.3,1.00731015]
[1642714195582,0.00113685,3174.9,3174.4,0.00170527]
[1642714195986,0.30113685,3174.9,3174.4,0.00170527]
[1642714196186,0.1259,3174.8,3174.4,0.00170527]
[1642714196391,0.00113685,3174.9,3174.4,0.00170527]
[1642714196588,0.30113685,3174.9,3174.0,0.00397896]
[1642714196788,0.60113685,3174.9,3174.0,0.00397896]
[1642714196987,4.10601949,3174.9,3174.0,0.00397896]
[1642714197186,1.94456724,3174.9,3174.0,1.62701348]
[1642714197387,0.7875995,3174.8,3174.0,1.62701348]
[1642714197586,0.3,3174.7,3174.1,0.00341054]
[1642714198388,0.7876301,3174.6,3174.1,0.00341054]
[1642714198833,1.1625,3174.8,3174.0,1.07931874]
[1642714199040,1.1625,3174.8,3174.1,0.00341054]
[1642714199435,1.1625,3174.8,3174.1,2.67587528]
[1642714199436,1.4625,3174.8,3174.1,2.67587528]
[1642714199634,0.7876303,3174.6,3174.1,2.67587528]
[1642714199835,0.7876303,3174.6,3174.2,0.00284212]
[1642714200038,1.0876303,3174.6,3174.2,0.00284212]
[1642714200436,1.46025737,3174.3,3174.2,0.00284212]
[1642714200636,2.25,3174.2,3173.9,0.10293115]
[1642714200836,3.8961634,3174.2,3173.9,0.10293115]
[1642714201139,1.0,3174.1,3173.9,0.10293115]
[1642714201336,2.28552136,3174.1,3173.9,0.10293115]
[1642714201740,1.28552136,3174.1,3173.9,0.10293115]
[1642714202583,2.30559935,3174.4,3173.9,0.10293115]
[1642714202584,0.7876994,3174.4,3173.9,0.10293115]
[1642714202782,0.78768,3174.6,3174.0,1.09865997]
[1642714202982,3.6733,3174.7,3174.0,1.09865997]
[1642714203185,0.00113685,3174.9,3174.0,1.09865997]
[1642714203383,0.00113685,3174.9,3174.1,1.35226478]
[1642714203581,0.00113685,3174.9,3174.0,1.09865997]
[1642714203582,0.00113685,3174.9,3174.8,1.42674732]
[1642714203988,0.00113685,3174.9,3174.8,2.50475255]
[1642714204585,0.00113685,3174.9,3174.8,1.07800523]
[1642714204985,0.82296713,3175.3,3174.8,1.07800523]
[1642714205386,1.91047713,3175.3,3174.8,1.07800523]
[1642714205586,0.00568424,3175.2,3174.8,1.07800523]
[1642714205987,0.79261862,3175.1,3174.1,1.57501]
[1642714206543,0.00454739,3175.0,3174.1,1.57501]
[1642714206942,0.00397897,3174.9,3174.1,1.57501]
[1642714207140,0.79149577,3174.9,3174.5,1.13748949]
[1642714207339,0.00341054,3174.8,3174.7,0.9827212]
[1642714208844,0.00341054,3174.8,3174.5,1.92496949]
[1642714209047,0.00341054,3174.8,3174.5,1.13748949]
[1642714209246,0.06069744,3174.6,3174.5,1.92498949]
[1642714209450,0.06069744,3174.6,3174.5,5.72498949]
[1642714209647,0.06297114,3174.6,3174.5,5.72498949]
[1642714210190,0.06297114,3174.6,3174.5,6.88592432]
[1642714211590,0.82292713,3175.3,3174.5,6.88592432]
[1642714211894,0.82292713,3175.3,3174.7,0.78731]
[1642714211895,0.00341054,3175.2,3174.7,0.78731]
[1642714212291,0.00284212,3175.1,3174.7,0.78731]
[1642714212490,0.00284212,3175.1,3174.7,0.58641]
[1642714212691,0.03554903,3175.3,3174.7,0.58641]
[1642714212692,0.00227369,3175.0,3174.7,0.58641]
[1642714213091,0.00170527,3174.9,3174.7,0.58641]
[1642714213390,0.00113684,3174.8,3174.7,0.58641]
[1642714213835,0.00113684,3174.8,3174.7,3.83679664]
[1642714214738,0.00113684,3174.8,3174.7,0.58641]
[1642714215335,0.00113684,3174.8,3174.7,3.78906406]
[1642714215737,0.00113684,3174.8,3174.7,3.80159691]
[1642714216537,0.00113684,3174.8,3174.7,0.59894285]
[1642714217040,0.00113684,3174.8,3174.6,1.57462]
[1642714217244,0.00113684,3174.8,3174.3,1.60492]
[1642714217499,1.0874865,3174.7,3174.3,0.03]
[1642714217694,0.7874865,3174.7,3174.4,0.00113685]
[1642714218294,0.7874865,3174.7,3174.4,1.14873509]
[1642714218494,0.7874865,3174.7,3174.4,1.93623509]
[1642714218696,0.7874865,3174.7,3174.4,0.78863685]
[1642714219601,0.7874865,3174.7,3174.4,0.00113685]
[1642714219798,1.0874865,3174.7,3174.4,0.00113685]
[1642714219995,0.7874865,3174.7,3174.4,0.00113685]
[1642714220196,0.00839293,3174.5,3174.4,0.00113685]
[1642714220997,0.00839293,3174.5,3174.4,3.49848392]
[1642714221444,0.00839293,3174.5,3174.4,6.75572166]
[1642714221842,0.00839293,3174.5,3174.4,6.70930224]
[1642714222044,0.00839293,3174.5,3174.4,3.49848392]
[1642714224247,0.00839293,3174.5,3174.4,6.19848392]
[1642714224647,0.00839293,3174.5,3174.4,3.49848392]
[1642714225783,0.00839293,3174.5,3174.4,7.21618628]
[1642714225985,0.00839293,3174.5,3174.4,3.79848392]
[1642714226385,0.00839293,3174.5,3174.4,8.79848392]
[1642714226587,0.00839293,3174.5,3174.4,3.79848392]
[1642714226786,0.00839293,3174.5,3174.4,3.49848392]
[1642714228487,0.00839293,3174.5,3174.4,0.82603845]
[1642714228736,0.00839293,3174.5,3174.4,3.49833549]
[1642714229138,0.00839293,3174.5,3174.4,2.67343389]
[1642714229340,0.00839293,3174.5,3174.4,0.00113685]
[1642714229737,0.00839293,3174.5,3174.3,0.00170527]
[1642714229937,1.47229487,3174.4,3174.3,0.00170527]
[1642714230138,5.77229487,3174.4,3174.0,2.67626285]
[1642714230343,5.77229487,3174.4,3174.1,0.00284212]
[1642714230542,1.0,3174.3,3174.1,0.00284212]
[1642714230738,1.0,3174.3,3174.0,1.07919443]
[1642714230739,6.1,3174.2,3174.0,1.07919443]
[1642714230942,0.00802445,3173.9,3173.0,0.03]
[1642714231138,1.575781,3173.8,3173.0,0.03]
[1642714231338,2.363651,3173.8,3173.1,0.00568423]
[1642714231538,2.663651,3173.8,3173.1,0.00568423]
[1642714231737,2.6636715,3173.8,3173.1,0.00568423]
[1642714232585,1.0,3173.7,3173.1,0.00568423]
[1642714232889,0.78794,3173.5,3173.1,0.00568423]
[1642714233486,1.0,3173.7,3173.1,0.00568423]
[1642714233894,0.7879422,3173.4,3173.1,0.00568423]
[1642714234892,0.7878346,3173.6,3173.1,0.96461274]
[1642714235091,1.0878346,3173.6,3173.1,0.96461274]
[1642714235293,1.0878346,3173.6,3173.2,0.00511581]
[1642714235495,0.7878346,3173.6,3173.2,0.79292581]
[1642714235893,0.7877908,3173.8,3173.3,0.00454739]
[1642714236132,1.0877908,3173.8,3173.3,0.00454739]
[1642714236332,2.6635042,3173.8,3173.3,0.00454739]
[1642714236534,3.4513742,3173.8,3173.3,0.00454739]
[1642714236734,3.4513742,3173.8,3173.2,0.00511581]
[1642714237036,2.3635042,3173.8,3173.2,0.00511581]
[1642714237633,0.78793,3173.7,3173.2,0.00511581]
[1642714237834,0.7878755,3173.6,3173.2,0.00511581]
[1642714238842,1.5758355,3173.6,3173.2,0.00511581]
[1642714239042,1.875989,3173.5,3173.2,0.00511581]
[1642714239240,0.7879905,3173.4,3173.2,0.00511581]
[1642714239893,0.7879905,3173.4,3172.6,0.00852635]
[1642714240087,1.5758567,3173.5,3172.6,0.00852635]
[1642714240088,0.00839293,3173.0,3172.6,0.00852635]
[1642714240288,0.79645603,3173.0,3172.6,0.00852635]
[1642714240487,0.79645603,3173.0,3172.4,5.00880029]
[1642714240488,0.79645603,3173.0,3172.5,0.00909477]
[1642714240889,0.79645603,3173.0,3172.4,2.66206975]
[1642714241089,1.58456603,3173.0,3172.3,1.02409678]
[1642714241291,0.7881221,3172.8,3172.3,1.02409678]
[1642714241490,0.7881221,3172.8,3172.1,2.39778316]
[1642714241693,0.00113684,3172.7,3171.8,2.39778316]
[1642714241895,0.00113684,3172.7,3172.2,0.00170528]
[1642714241896,0.44813684,3172.7,3172.2,0.00170528]
[1642714242091,0.44813684,3172.7,3171.7,5.78976662]
[1642714242092,0.5,3172.2,3171.7,5.78976662]
[1642714242291,0.5,3172.2,3171.7,2.37948844]
[1642714242492,0.5,3172.2,3171.8,0.00227369]
[1642714243296,1.28834,3172.2,3171.8,0.00227369]
[1642714244137,2.28834,3172.2,3171.8,0.00227369]
[1642714244338,1.28834,3172.2,3171.8,0.00227369]
[1642714244550,0.5,3172.2,3171.8,0.79040369]
[1642714244940,0.5,3172.2,3171.9,0.00170527]
[1642714245341,0.5,3172.2,3172.1,1.54431271]
[1642714246941,0.5,3172.2,3172.0,1.90496643]
[1642714247142,0.5,3172.2,3172.0,1.11687643]
[1642714248187,0.5,3172.2,3172.0,2.35840214]
[1642714248789,0.5,3172.2,3172.0,6.45817356]
[1642714248988,0.5,3172.2,3172.0,3.14654214]
[1642714250091,0.00839293,3172.1,3172.0,3.14654214]
[1642714250488,0.00839293,3172.1,3172.0,3.14767898]
[1642714250790,0.00839293,3172.1,3172.0,5.03327958]
[1642714251833,0.45839293,3172.2,3172.1,3.0]
[1642714252032,0.45839293,3172.2,3172.1,6.4618606]
[1642714252837,0.45839293,3172.2,3172.1,3.4618606]
[1642714253843,0.45839293,3172.2,3172.1,3.7618606]
[1642714254036,0.45839293,3172.2,3172.1,2.6737406]
[1642714255585,0.45839293,3172.2,3172.0,1.11801327]
[1642714255784,0.45839293,3172.2,3172.0,1.41801327]
[1642714255984,0.45839293,3172.2,3172.1,2.67384595]
[1642714257589,0.45839293,3172.2,3172.0,0.00113684]
[1642714257988,0.45839293,3172.2,3172.0,2.67384595]
[1642714258189,0.45839293,3172.2,3172.1,2.67384595]
[1642714258836,0.45839293,3172.2,3172.1,2.67391291]
[1642714259040,0.45839293,3172.2,3172.0,0.00113684]
[1642714259435,0.45839293,3172.2,3172.0,2.67391291]
[1642714259638,0.45839293,3172.2,3172.1,2.6738721]
[1642714260236,0.45839293,3172.2,3172.0,0.00113684]
[1642714260738,0.45839293,3172.2,3171.9,0.00170527]
[1642714260940,0.45839293,3172.2,3171.9,2.67556147]
[1642714261140,0.45839293,3172.2,3172.0,2.6738562]
[1642714261439,0.45839293,3172.2,3172.1,2.6738562]
[1642714261746,0.45839293,3172.2,3172.0,0.00113684]
[1642714262138,0.45839293,3172.2,3172.0,2.6738562]
[1642714262387,0.45839293,3172.2,3172.1,2.6738562]
[1642714262580,0.45839293,3172.2,3172.0,0.00113684]
[1642714262581,0.75839293,3172.2,3172.0,0.00113684]
[1642714262782,0.45839293,3172.2,3172.0,0.00113684]
[1642714262984,0.45839293,3172.2,3171.9,0.00170527]
[1642714264291,0.45839293,3172.2,3172.0,0.78816]
[1642714264485,0.45839293,3172.2,3172.0,1.08816]
[1642714264686,0.45839293,3172.2,3172.1,2.6738562]
[1642714268035,0.45839293,3172.2,3172.1,9.58391073]
[1642714268234,0.0022737,3172.6,3172.3,0.81671524]
[1642714268434,0.0022737,3172.6,3172.4,2.67338616]
[1642714268633,0.00170528,3172.5,3172.4,2.67338616]
[1642714268837,0.00170528,3172.5,3172.4,2.97338616]
[1642714269238,0.00170528,3172.5,3172.4,4.04522176]
[1642714269442,0.00170528,3172.5,3172.4,4.83315176]
[1642714270080,0.00170528,3172.5,3172.4,6.40901176]
[1642714270786,0.00170528,3172.5,3172.4,5.62108176]
[1642714273738,0.00170528,3172.5,3172.4,4.54924616]
[1642714273940,0.00170528,3172.5,3172.4,2.97338616]
[1642714274140,0.00170528,3172.5,3172.4,2.67338616]
[1642714274340,0.00170528,3172.5,3172.3,2.67338616]
[1642714274742,0.00113685,3172.4,3172.3,2.67338616]
[1642714275241,0.00397897,3172.4,3172.3,2.67338616]
[1642714277145,0.79212477,3172.4,3172.3,2.67338616]
[1642714279084,0.00397897,3172.4,3172.3,2.67338616]
[1642714284899,0.00397897,3172.4,3172.3,3.52482715]
[1642714285084,0.00397897,3172.4,3172.3,5.11151626]
[1642714285683,0.00397897,3172.4,3172.3,3.52482715]
[1642714286084,0.00397897,3172.4,3172.3,2.67338616]
[1642714286085,3.38886693,3172.4,3172.3,2.67338616]
[1642714286285,1.26797897,3172.4,3172.3,2.67338616]
[1642714286484,0.96797897,3172.4,3172.3,2.67338616]
[1642714286683,4.76797897,3172.4,3172.3,2.67338616]
[1642714287082,6.64097897,3172.4,3172.3,2.67338616]
[1642714287285,5.34097897,3172.4,3172.3,2.67338616]
[1642714287487,5.51497897,3172.4,3172.3,2.67338616]
[1642714288283,1.41497897,3172.4,3172.3,2.67338616]
[1642714289144,0.45097897,3172.4,3172.3,2.67338616]
[1642714289543,4.40097897,3172.4,3172.3,2.67338616]
[1642714289742,5.40097897,3172.4,3172.3,2.67338616]
[1642714289944,4.70097897,3172.4,3172.3,2.67338616]
[1642714290347,5.82697897,3172.4,3172.3,2.67338616]
[1642714290548,5.82697897,3172.4,3172.3,2.66286036]
[1642714290750,6.1,3172.2,3171.2,0.04434574]
[1642714290952,6.1,3172.3,3171.0,0.1]
[1642714290953,0.01253012,3171.6,3171.0,0.1]
[1642714291148,0.447,3171.5,3171.4,0.00284211]
[1642714291550,3.997,3171.5,3171.4,0.00284211]
[1642714291947,3.997,3171.5,3171.1,0.00454738]
[1642714292401,0.447,3171.5,3171.1,0.00454738]
[1642714292594,0.447,3171.5,3171.3,1.1881717]
[1642714292998,0.447,3171.5,3171.1,0.00454738]
[1642714293602,0.447,3171.5,3170.5,0.03]
[1642714293603,4.18577099,3171.4,3170.5,0.03]
[1642714293802,4.18577099,3171.4,3170.0,2.4907664]
[1642714293803,0.01222115,3170.7,3170.0,2.4907664]
[1642714294002,0.01222115,3170.7,3169.9,0.05005]
[1642714294003,0.447,3170.7,3170.6,0.00284212]
[1642714294301,0.447,3170.7,3170.0,0.00625266]
[1642714294502,0.447,3170.7,3169.6,2.29645512]
[1642714294503,2.9,3170.6,3169.6,2.29645512]
[1642714294716,2.9,3170.6,3169.3,0.78886]
[1642714294717,2.90341054,3170.6,3169.3,0.78886]
[1642714294900,1.44984212,3170.5,3169.7,0.00170527]
[1642714295099,1.44984212,3170.5,3169.5,1.02236103]
[1642714295406,0.00397896,3170.4,3169.7,1.27431381]
[1642714295800,0.447,3170.6,3169.8,0.78874]
[1642714295801,0.00341054,3170.3,3169.8,0.78874]
[1642714296003,0.00341054,3170.3,3169.9,1.57712]
[1642714296241,0.447,3171.0,3169.9,1.57712]
[1642714296242,0.00284212,3170.2,3169.9,1.57712]
[1642714296444,0.00284212,3170.2,3170.0,0.9634702]
[1642714296645,0.447,3171.0,3170.0,0.9634702]
[1642714296646,0.00227369,3170.1,3170.0,0.9634702]
[1642714297649,0.00227369,3170.1,3170.0,2.5407302]
[1642714298545,0.00227369,3170.1,3170.0,5.5407302]
[1642714298750,7.7824,3171.2,3170.3,1.57698]
[1642714298954,1.1982,3171.7,3170.4,4.16236234]
[1642714299150,1.1982,3171.7,3170.5,3.72054765]
[1642714299151,0.00454739,3170.9,3170.5,3.72054765]
[1642714299349,0.00454739,3170.9,3170.5,4.72054765]
[1642714299548,0.00397897,3170.8,3170.5,4.72054765]
[1642714300015,1.1982,3171.7,3170.5,4.72054765]
[1642714300016,0.00341054,3170.7,3170.5,4.72054765]
[1642714300204,0.00341054,3170.7,3170.6,1.9080697]
[1642714300408,1.1982,3171.7,3170.6,1.9080697]
[1642714300606,1.1982,3171.7,3171.3,0.96472252]
[1642714300810,0.00852635,3171.6,3171.3,0.96472252]
[1642714301210,0.447,3172.0,3171.3,0.96472252]
[1642714301211,0.00795793,3171.5,3171.3,0.96472252]
[1642714301713,0.3,3171.6,3170.5,1.57691]
[1642714301714,5.15738951,3171.4,3170.5,1.57691]
[1642714301912,5.15738951,3171.4,3170.7,0.7885]
[1642714302109,0.03554903,3170.9,3170.5,1.57691]
[1642714302510,0.00397897,3170.8,3170.6,1.33890695]
[1642714302712,0.00397897,3170.8,3170.7,3.48854]
[1642714303010,0.03554903,3170.9,3170.7,3.48854]
[1642714303211,0.03554903,3170.9,3170.7,8.37716029]
[1642714303415,0.03554903,3170.9,3170.8,4.62682]
[1642714303840,0.04009642,3170.9,3170.8,7.94567236]
[1642714304041,0.04009642,3170.9,3170.8,4.62682]
[1642714304640,0.04009642,3170.9,3170.8,7.94356011]
[1642714304839,0.04009642,3170.9,3170.8,1.57682]
[1642714306443,0.04009642,3170.9,3170.8,5.02682]
[1642714306843,0.04009642,3170.9,3170.8,1.57682]
[1642714307485,0.04009642,3170.9,3170.8,4.42682]
[1642714308086,0.04009642,3170.9,3170.8,1.57682]
[1642714308386,0.04009642,3170.9,3170.6,2.29121572]
[1642714308792,0.00397897,3170.8,3170.6,2.29121572]
[1642714309193,0.00341054,3170.7,3170.6,2.29121572]
[1642714309393,0.00341054,3170.7,3170.6,5.49121572]
[1642714309792,0.00341054,3170.7,3170.6,2.24121572]
[1642714310692,0.00341054,3170.7,3170.6,4.91626412]
[1642714310892,0.00341054,3170.7,3170.6,4.91627515]
[1642714313241,0.00341054,3170.7,3170.6,4.86627515]
[1642714316497,0.00341054,3170.7,3170.6,7.23122515]
[1642714319047,0.00341054,3170.7,3170.6,4.86627515]
[1642714321242,1.7866391,3170.7,3170.6,4.86649074]
[1642714321445,1.7866391,3170.7,3170.6,2.19121572]
[1642714321647,1.7866391,3170.7,3170.5,0.7886]
[1642714321848,1.7866391,3170.7,3170.0,2.73006]
[1642714322049,0.00284212,3170.6,3170.2,3.46415703]
[1642714322247,0.00284212,3170.6,3170.2,0.78865]
[1642714322491,1.78322856,3170.7,3170.3,2.67553515]
[1642714322492,0.0022737,3170.5,3170.3,2.67553515]
[1642714322690,1.78550226,3170.5,3170.0,1.57726]
[1642714322889,1.78550226,3170.5,3170.2,2.67561115]
[1642714322890,0.00170527,3170.4,3170.2,2.67561115]
[1642714323095,0.00170527,3170.4,3170.1,0.00442453]
[1642714323292,0.00113685,3170.3,3170.1,0.00442453]
[1642714323491,2.897,3170.2,3170.1,0.00442453]
[1642714323693,0.447,3170.2,3170.1,0.00442453]
[1642714323893,0.00170527,3170.4,3170.1,2.68006776]
[1642714324096,0.00170527,3170.4,3170.2,2.67564323]
[1642714324299,0.447,3170.6,3170.2,2.67564323]
[1642714324300,0.00113685,3170.3,3170.2,2.67564323]
[1642714324496,0.00113685,3170.3,3170.1,1.58162453]
[1642714324695,0.00113685,3170.3,3170.2,0.94865104]
[1642714325094,0.00113685,3170.3,3170.2,1.73723104]
[1642714325495,0.00113685,3170.3,3170.2,4.4128288]
[1642714327958,18.43819997,3172.3,3172.0,271.28091922]
[1642714328161,1.87722,3172.1,3172.0,271.28091922]
[1642714328359,20.78183,3172.1,3172.0,271.28091922]
[1642714328563,20.78183,3172.1,3172.0,264.97211632]
[1642714328962,5.05383411,3172.1,3172.0,264.97211632]
[1642714329163,8.65383411,3172.1,3172.0,258.66358282]
[1642714329362,27.0307571,3172.1,3172.0,258.66358282]
[1642714329761,27.0307571,3172.1,3172.0,252.35425322]
[1642714329993,27.0307571,3172.1,3172.0,248.07324383]
[1642714330189,27.0307571,3172.1,3172.0,241.76431473]
[1642714330389,32.6237571,3172.1,3172.0,236.05607748]
[1642714331394,35.06403611,3172.1,3172.0,236.05607748]
[1642714331595,34.76403611,3172.1,3172.0,236.05607748]
[1642714332397,35.06403611,3172.1,3172.0,236.05607748]
[1642714333646,32.16403611,3172.1,3172.0,236.05607748]
[1642714333845,32.16403611,3172.1,3172.0,234.80764262]
[1642714334046,29.05228312,3172.1,3172.0,234.80764262]
[1642714334443,29.05228312,3172.1,3172.0,235.76598452]
[1642714334647,5.15928312,3172.1,3172.0,235.76598452]
[1642714334848,4.37072312,3172.1,3172.0,235.76598452]
[1642714335345,2.23044411,3172.1,3172.0,235.76598452]
[1642714335546,2.23044411,3172.1,3172.0,236.86989785]
[1642714336547,0.447,3172.1,3172.0,236.86989785]
[1642714336748,7.39,3172.6,3172.1,5.8]
[1642714337051,0.01250532,3172.5,3172.4,0.01400603]
[1642714337249,0.01250532,3172.5,3172.3,0.01263003]
[1642714337521,0.01534743,3173.0,3172.3,0.01263003]
[1642714337714,0.447,3173.2,3172.3,1.58874003]
[1642714337715,0.01193689,3172.4,3172.3,1.58874003]
[1642714337914,0.01477901,3172.9,3172.3,1.58874003]
[1642714338114,0.01193689,3172.4,3172.3,1.02471286]
[1642714338320,0.447,3172.4,3172.0,234.80764262]
[1642714338513,0.45893689,3172.4,3172.0,234.80764262]
[1642714338715,0.01136847,3172.3,3172.0,234.80764262]
[1642714338914,0.45836847,3172.3,3172.0,234.80764262]
[1642714339215,0.01080004,3172.2,3172.0,234.80764262]
[1642714339613,0.01023162,3172.1,3172.0,234.80764262]
[1642714339914,0.01023162,3172.1,3172.0,235.66646574]
[1642714340125,0.01023162,3172.1,3172.0,236.45463574]
[1642714340517,0.447,3172.7,3172.1,6.15]
[1642714340717,0.447,3172.7,3172.2,4.0186036]
[1642714340916,0.00284212,3172.6,3172.0,235.67887422]
[1642714341338,0.0022737,3172.5,3172.0,235.67887422]
[1642714341541,0.126,3173.3,3173.0,234.35836892]
[1642714341742,0.447,3173.2,3173.0,234.35836892]
[1642714341940,1.53515,3173.2,3173.0,234.35836892]
[1642714342744,1.53515,3173.2,3173.0,235.26020261]
[1642714343140,0.747,3173.2,3173.0,235.26020261]
[1642714343744,0.447,3173.2,3173.0,235.26020261]
[1642714343949,0.447,3173.2,3173.1,1.146577]
[1642714344148,0.447,3173.2,3173.0,235.26020261]
[1642714344346,0.45097896,3173.2,3173.0,235.26020261]
[1642714345293,0.45097896,3173.2,3173.1,1.53574221]
[1642714345890,0.45097896,3173.2,3173.0,234.35836892]
[1642714346093,1.23910896,3173.2,3173.0,234.35836892]
[1642714346292,0.00341054,3173.1,3173.0,234.35836892]
[1642714346491,0.45041054,3173.1,3173.0,234.35836892]
[1642714348846,0.75041054,3173.1,3173.0,234.35836892]
[1642714349045,0.45041054,3173.1,3173.0,234.35836892]
[1642714349245,0.40041054,3173.1,3173.0,234.35836892]
[1642714351447,0.65041054,3173.1,3173.0,234.35836892]
[1642714351849,0.40041054,3173.1,3173.0,234.35836892]
[1642714352594,0.30041054,3173.1,3173.0,234.35836892]
[1642714352794,0.25041054,3173.1,3173.0,234.35836892]
[1642714356149,0.447,3173.7,3173.0,234.35836892]
[1642714356341,7.837,3174.1,3173.1,0.02852385]
[1642714356542,0.00284211,3173.6,3173.1,0.02852385]
[1642714356939,0.00227369,3173.5,3173.0,234.35836892]
[1642714357140,0.00227369,3173.5,3173.1,0.78789]
[1642714357342,0.00170527,3173.4,3173.1,0.78789]
[1642714357543,3.76551406,3175.1,3173.5,0.01769448]
[1642714357741,5.295,3175.1,3173.4,6.93766]
[1642714357942,0.00682108,3174.6,3173.4,6.15]
[1642714358347,0.00625265,3174.5,3174.4,2.44950314]
[1642714359144,0.00625265,3174.5,3173.9,1.13]
[1642714359545,0.00568423,3174.4,3173.5,8.53593]
[1642714359993,0.00511581,3174.3,3173.5,8.53593]
[1642714360194,0.00511581,3174.3,3174.1,0.85186441]
[1642714360395,0.00454738,3174.2,3174.1,0.85186441]
[1642714360794,0.00454738,3174.2,3173.7,1.83874569]
[1642714361099,0.00397896,3174.1,3173.7,1.53874569]
[1642714361295,0.00397896,3174.1,3173.5,8.3783]
[1642714361498,0.00341054,3174.0,3173.5,8.3783]
[1642714361897,0.00284211,3173.9,3173.5,5.095]
[1642714362099,0.00284211,3173.9,3173.6,0.86989112]
[1642714362298,0.00227369,3173.8,3173.6,0.86989112]
[1642714362598,0.00170527,3173.7,3173.6,0.86989112]
[1642714362798,0.00170527,3173.7,3173.6,6.31989112]
[1642714364091,8.62832841,3175.1,3173.7,4.75]
[1642714364289,0.573,3175.0,3173.7,4.75]
[1642714364492,0.00511581,3174.6,3173.8,0.00581217]
[1642714364992,0.00454738,3174.5,3173.7,4.75]
[1642714365291,0.00397896,3174.4,3173.9,1.26409565]
[1642714365691,0.00341054,3174.3,3173.9,1.26409565]
[1642714366091,0.00284211,3174.2,3173.9,1.26409565]
[1642714366492,0.00227369,3174.1,3173.9,1.56409565]
[1642714366692,0.00227369,3174.1,3174.0,4.276]
[1642714366891,4.19070527,3175.1,3174.0,4.276]
[1642714367093,4.19070527,3175.1,3174.6,0.87966762]
[1642714367293,0.0073895,3175.0,3174.6,0.87966762]
[1642714367693,0.00682108,3174.9,3174.6,0.87966762]
[1642714368093,3.74370527,3175.1,3174.4,1.40234161]
[1642714368094,0.00625265,3174.8,3174.4,0.78756]
[1642714368493,0.00568423,3174.7,3174.4,0.78756]
[1642714368900,0.00511581,3174.6,3174.4,0.78756]
[1642714369096,0.00511581,3174.6,3174.4,0.3]
[1642714369309,0.00454738,3174.5,3174.0,1.3049]
[1642714369698,0.00397896,3174.4,3174.0,1.1789]
[1642714369898,2.1902,3176.7,3173.3,0.126]
[1642714370101,0.447,3174.7,3173.7,0.01282715]
[1642714370297,0.00113685,3174.6,3174.4,0.95316891]
[1642714370498,0.00113685,3174.6,3174.4,0.01233954]
[1642714370898,2.897,3174.5,3174.4,0.01233954]